[Event "Early-Titled-Tuesday-Blitz-February-27-2024"]
[Site "Chess.com"]
[Date "2024.02.27"]
[Round "4"]
[White "Rud_Makarian"]
[Black "kleinebeer98"]
[Result "0-1"]
[WhiteElo "3100"]
[BlackElo "2891"]
[TimeControl "180+1"]
[EndTime "8:36:55 PST"]
[Termination "kleinebeer98 won on time"]

1. Nf3 {[%clk 0:03:00.9]} 1... Nf6 {[%clk 0:02:59.5]} 2. c4 {[%clk 0:02:59.6]}
2... e6 {[%clk 0:02:55.1]} 3. g3 {[%clk 0:02:57.4]} 3... d5 {[%clk 0:02:55.1]}
4. Bg2 {[%clk 0:02:54.6]} 4... Nbd7 {[%clk 0:02:52.3]} 5. b3 {[%clk 0:02:51.6]}
5... Bd6 {[%clk 0:02:49.8]} 6. Bb2 {[%clk 0:02:47.6]} 6... O-O {[%clk
0:02:50.4]} 7. O-O {[%clk 0:02:47.6]} 7... c5 {[%clk 0:02:49.4]} 8. cxd5 {[%clk
0:02:43.4]} 8... exd5 {[%clk 0:02:48.2]} 9. d4 {[%clk 0:02:43.6]} 9... c4 {[%clk
0:02:43.7]} 10. Nc3 {[%clk 0:02:41]} 10... Re8 {[%clk 0:02:41.4]} 11. bxc4
{[%clk 0:02:36.5]} 11... dxc4 {[%clk 0:02:41.5]} 12. Qc2 {[%clk 0:02:37]} 12...
Nb6 {[%clk 0:02:36.6]} 13. e4 {[%clk 0:02:34]} 13... Bb4 {[%clk 0:02:37.1]} 14.
Rfe1 {[%clk 0:02:28]} 14... Bg4 {[%clk 0:02:34.4]} 15. a3 {[%clk 0:02:22.1]}
15... Ba5 {[%clk 0:02:30.9]} 16. Rad1 {[%clk 0:02:13]} 16... Bh5 {[%clk
0:02:31.3]} 17. h3 {[%clk 0:02:09.7]} 17... Qc7 {[%clk 0:02:15.5]} 18. g4 {[%clk
0:02:04.7]} 18... Bg6 {[%clk 0:02:15.4]} 19. Ne5 {[%clk 0:02:03.8]} 19... Rad8
{[%clk 0:02:09.3]} 20. Nxg6 {[%clk 0:01:59.6]} 20... hxg6 {[%clk 0:02:08.9]} 21.
Re3 {[%clk 0:02:00.1]} 21... Qf4 {[%clk 0:01:53.9]} 22. Ne2 {[%clk 0:01:41]}
22... Qh6 {[%clk 0:01:49.2]} 23. Bc1 {[%clk 0:01:10.7]} 23... Qh4 {[%clk
0:01:45.4]} 24. d5 {[%clk 0:01:07.7]} 24... Nbd7 {[%clk 0:01:43.5]} 25. Nd4
{[%clk 0:00:43.2]} 25... Ne5 {[%clk 0:01:41.5]} 26. f4 {[%clk 0:00:38.6]} 26...
Nd3 {[%clk 0:01:41.5]} 27. Nf3 {[%clk 0:00:33.2]} 27... Qg3 {[%clk 0:01:38.7]}
28. Nd4 {[%clk 0:00:21.3]} 28... Qxf4 {[%clk 0:01:31.7]} 29. Rexd3 {[%clk
0:00:13.6]} 29... cxd3 {[%clk 0:01:32.6]} 30. Qxd3 {[%clk 0:00:14.5]} 30... Qe5
{[%clk 0:01:30.8]} 31. Bb2 {[%clk 0:00:02.8]} 31... Nxe4 {[%clk 0:01:28.8]} 32.
Qb5 {[%clk 0:00:01.7]} 32... Bb6 {[%clk 0:01:28.3]} 33. Kf1 {[%clk 0:00:01.3]}
33... Qg3 {[%clk 0:01:25.1]} 0-1

[Event "Early-Titled-Tuesday-Blitz-February-27-2024"]
[Site "Chess.com"]
[Date "2024.02.27"]
[Round "4"]
[White "Atousa"]
[Black "FREDERICKtheMATE"]
[Result "0-1"]
[WhiteElo "2466"]
[BlackElo "2666"]
[TimeControl "180+1"]
[EndTime "8:36:56 PST"]
[Termination "FREDERICKtheMATE won on time"]

1. e4 {[%clk 0:02:51.7]} 1... c5 {[%clk 0:02:59.6]} 2. Nf3 {[%clk 0:02:51.7]}
2... Nc6 {[%clk 0:02:59.4]} 3. d4 {[%clk 0:02:52]} 3... cxd4 {[%clk 0:03:00]} 4.
Nxd4 {[%clk 0:02:52.8]} 4... Nf6 {[%clk 0:03:00.2]} 5. Nc3 {[%clk 0:02:52.4]}
5... e5 {[%clk 0:03:00.6]} 6. Ndb5 {[%clk 0:02:52.6]} 6... d6 {[%clk 0:03:00]}
7. Bg5 {[%clk 0:02:52.1]} 7... a6 {[%clk 0:02:59.3]} 8. Na3 {[%clk 0:02:52.1]}
8... b5 {[%clk 0:02:59.8]} 9. Nd5 {[%clk 0:02:51]} 9... Be7 {[%clk 0:03:00.3]}
10. Bxf6 {[%clk 0:02:51.6]} 10... Bxf6 {[%clk 0:03:01.2]} 11. c4 {[%clk
0:02:52.1]} 11... b4 {[%clk 0:03:00.9]} 12. Nc2 {[%clk 0:02:52.7]} 12... O-O
{[%clk 0:03:00.9]} 13. Be2 {[%clk 0:02:51.6]} 13... a5 {[%clk 0:03:00.2]} 14.
O-O {[%clk 0:02:51.5]} 14... Bg5 {[%clk 0:02:59.7]} 15. Qd3 {[%clk 0:02:51.7]}
15... Kh8 {[%clk 0:02:59.4]} 16. Rad1 {[%clk 0:02:51.9]} 16... f5 {[%clk
0:02:58.1]} 17. Bf3 {[%clk 0:02:46.7]} 17... f4 {[%clk 0:02:56.6]} 18. Qe2
{[%clk 0:02:42.3]} 18... Rb8 {[%clk 0:02:52.1]} 19. b3 {[%clk 0:02:36.5]} 19...
g6 {[%clk 0:02:42]} 20. Bg4 {[%clk 0:02:31.6]} 20... Bxg4 {[%clk 0:02:37.5]} 21.
Qxg4 {[%clk 0:02:32.5]} 21... Re8 {[%clk 0:02:32]} 22. g3 {[%clk 0:02:19]} 22...
h5 {[%clk 0:02:25.3]} 23. Qe2 {[%clk 0:02:18.4]} 23... Rb7 {[%clk 0:02:21.4]}
24. gxf4 {[%clk 0:02:16.2]} 24... Bxf4 {[%clk 0:02:22.3]} 25. Nxf4 {[%clk
0:02:14.4]} 25... exf4 {[%clk 0:02:22.9]} 26. f3 {[%clk 0:02:11.7]} 26... Ne5
{[%clk 0:02:21]} 27. Kh1 {[%clk 0:02:05.6]} 27... g5 {[%clk 0:02:15.1]} 28. c5
{[%clk 0:02:03.3]} 28... Rd7 {[%clk 0:02:14]} 29. cxd6 {[%clk 0:01:52.7]} 29...
Rxd6 {[%clk 0:02:14.9]} 30. Rxd6 {[%clk 0:01:52.7]} 30... Qxd6 {[%clk
0:02:15.8]} 31. Rd1 {[%clk 0:01:52.8]} 31... Qb6 {[%clk 0:02:11.2]} 32. Nd4
{[%clk 0:01:43.8]} 32... g4 {[%clk 0:02:10.8]} 33. Qd2 {[%clk 0:01:22.2]} 33...
Qf6 {[%clk 0:02:01.4]} 34. Nf5 {[%clk 0:01:18.2]} 34... Qg5 {[%clk 0:01:53]} 35.
Nd6 {[%clk 0:00:37.7]} 35... Rd8 {[%clk 0:01:42.7]} 36. Qd4 {[%clk 0:00:27]}
36... Kh7 {[%clk 0:01:38.5]} 37. Qa7+ {[%clk 0:00:03.3]} 37... Rd7 {[%clk
0:01:38.3]} 38. Qxa5 {[%clk 0:00:03.6]} 38... gxf3 {[%clk 0:01:38.5]} 39. Rg1
{[%clk 0:00:03.3]} 39... f2 {[%clk 0:01:36.7]} 40. Rxg5 {[%clk 0:00:02.4]} 40...
f1=Q+ {[%clk 0:01:36.1]} 41. Rg1 {[%clk 0:00:03.3]} 41... Qf3+ {[%clk
0:01:35.9]} 42. Rg2 {[%clk 0:00:04]} 42... Rg7 {[%clk 0:01:35.3]} 0-1

[Event "Early-Titled-Tuesday-Blitz-February-27-2024"]
[Site "Chess.com"]
[Date "2024.02.27"]
[Round "4"]
[White "ActorXu"]
[Black "Salem-AR"]
[Result "1/2-1/2"]
[WhiteElo "2838"]
[BlackElo "3037"]
[TimeControl "180+1"]
[EndTime "8:37:02 PST"]
[Termination "Game drawn by agreement"]

1. e4 {[%clk 0:03:00.9]} 1... c6 {[%clk 0:03:00.5]} 2. d4 {[%clk 0:03:00.4]}
2... d5 {[%clk 0:03:01]} 3. e5 {[%clk 0:03:00.8]} 3... Bf5 {[%clk 0:03:00.8]} 4.
h4 {[%clk 0:03:00.7]} 4... h5 {[%clk 0:02:59.5]} 5. Bd3 {[%clk 0:03:00.6]} 5...
Bxd3 {[%clk 0:02:59.3]} 6. Qxd3 {[%clk 0:03:01.2]} 6... Qa5+ {[%clk 0:03:00]} 7.
Nd2 {[%clk 0:03:00.8]} 7... e6 {[%clk 0:02:59.4]} 8. Nf3 {[%clk 0:03:00.3]} 8...
Nh6 {[%clk 0:02:59.7]} 9. O-O {[%clk 0:03:00]} 9... Nf5 {[%clk 0:03:00.5]} 10.
c3 {[%clk 0:02:57.4]} 10... Qa6 {[%clk 0:02:58.6]} 11. Qxa6 {[%clk 0:02:49.8]}
11... Nxa6 {[%clk 0:02:58.3]} 12. b4 {[%clk 0:02:47.6]} 12... Nc7 {[%clk
0:02:50.9]} 13. a4 {[%clk 0:02:45.4]} 13... a5 {[%clk 0:02:46]} 14. bxa5 {[%clk
0:02:42.9]} 14... Rxa5 {[%clk 0:02:46.7]} 15. Nb3 {[%clk 0:02:43.4]} 15... Ra7
{[%clk 0:02:41.5]} 16. Bg5 {[%clk 0:02:42.5]} 16... Be7 {[%clk 0:02:29]} 17.
Rfb1 {[%clk 0:02:31.2]} 17... Bxg5 {[%clk 0:02:08.7]} 18. hxg5 {[%clk
0:02:31.8]} 18... Ke7 {[%clk 0:02:02.3]} 19. Nc5 {[%clk 0:02:28.8]} 19... Rb8
{[%clk 0:02:02.6]} 20. Rb4 {[%clk 0:01:55.9]} 20... b5 {[%clk 0:01:42.8]} 21.
Rb2 {[%clk 0:01:16.7]} 21... Rba8 {[%clk 0:01:35.8]} 22. Rba2 {[%clk 0:01:16.9]}
22... bxa4 {[%clk 0:01:21.6]} 23. Rxa4 {[%clk 0:01:15.1]} 23... Rxa4 {[%clk
0:01:21.5]} 24. Rxa4 {[%clk 0:01:15.8]} 24... Rxa4 {[%clk 0:01:21.6]} 25. Nxa4
{[%clk 0:01:16.3]} 25... Nb5 {[%clk 0:00:32.5]} 26. g3 {[%clk 0:01:14.3]} 26...
Kd8 {[%clk 0:00:21.4]} 27. Kf1 {[%clk 0:01:14.1]} 27... Kc7 {[%clk 0:00:20.2]}
28. Ke2 {[%clk 0:01:14.1]} 28... g6 {[%clk 0:00:18.5]} 29. Kd3 {[%clk
0:01:13.8]} 29... Ne7 {[%clk 0:00:15.2]} 30. Nd2 {[%clk 0:01:10]} 30... Nf5
{[%clk 0:00:10.5]} 31. Nf3 {[%clk 0:01:09.7]} 31... Ne7 {[%clk 0:00:10.4]}
1/2-1/2

[Event "Early-Titled-Tuesday-Blitz-February-27-2024"]
[Site "Chess.com"]
[Date "2024.02.27"]
[Round "4"]
[White "Sina_Movahed"]
[Black "Aslanov_Umid"]
[Result "1-0"]
[WhiteElo "2938"]
[BlackElo "2676"]
[TimeControl "180+1"]
[EndTime "8:37:10 PST"]
[Termination "Sina_Movahed won by resignation"]

1. Nf3 {[%clk 0:03:00.9]} 1... d6 {[%clk 0:03:00.3]} 2. e4 {[%clk 0:03:00.1]}
2... c5 {[%clk 0:03:00.2]} 3. d4 {[%clk 0:02:59.6]} 3... cxd4 {[%clk 0:03:01.1]}
4. Nxd4 {[%clk 0:03:00.1]} 4... Nf6 {[%clk 0:03:01.8]} 5. Nc3 {[%clk 0:03:00.6]}
5... a6 {[%clk 0:03:02.5]} 6. h3 {[%clk 0:03:00.5]} 6... e6 {[%clk 0:03:02.6]}
7. g4 {[%clk 0:03:00.1]} 7... Be7 {[%clk 0:03:03.3]} 8. g5 {[%clk 0:02:49.1]}
8... Nfd7 {[%clk 0:03:03.4]} 9. h4 {[%clk 0:02:49.4]} 9... b5 {[%clk 0:03:02.8]}
10. Bg2 {[%clk 0:02:46.3]} 10... Bb7 {[%clk 0:03:02.8]} 11. Be3 {[%clk 0:02:43]}
11... b4 {[%clk 0:03:02.6]} 12. Nce2 {[%clk 0:02:42.8]} 12... Nc6 {[%clk
0:02:58.3]} 13. Nxc6 {[%clk 0:02:42.5]} 13... Bxc6 {[%clk 0:02:59.2]} 14. Nd4
{[%clk 0:02:43.2]} 14... Bb7 {[%clk 0:02:59.5]} 15. Qe2 {[%clk 0:02:39.4]} 15...
Nc5 {[%clk 0:02:33.2]} 16. O-O-O {[%clk 0:02:29.8]} 16... Qa5 {[%clk 0:02:33]}
17. Kb1 {[%clk 0:02:29.3]} 17... Nxe4 {[%clk 0:02:02.5]} 18. Qg4 {[%clk
0:02:04.1]} 18... f5 {[%clk 0:01:10]} 19. gxf6 {[%clk 0:01:56]} 19... Nxf6
{[%clk 0:01:10.3]} 20. Qxe6 {[%clk 0:01:42.8]} 20... Bxg2 {[%clk 0:01:09.9]} 21.
Nf5 {[%clk 0:01:41.4]} 21... Qc7 {[%clk 0:00:36.7]} 22. Nxd6+ {[%clk 0:01:26.4]}
22... Qxd6 {[%clk 0:00:36.6]} 23. Rxd6 {[%clk 0:01:26.9]} 23... Bxh1 {[%clk
0:00:36.4]} 24. Bc5 {[%clk 0:01:27.1]} 24... Bd5 {[%clk 0:00:27.1]} 25. Rxd5
{[%clk 0:01:21.2]} 25... Nxd5 {[%clk 0:00:27.3]} 26. Qc6+ {[%clk 0:01:21.9]}
26... Kf7 {[%clk 0:00:21.4]} 27. Qxd5+ {[%clk 0:01:21.7]} 27... Kf6 {[%clk
0:00:19.2]} 28. Qg5+ {[%clk 0:01:09.1]} 28... Kf7 {[%clk 0:00:15.8]} 29. Qxe7+
{[%clk 0:01:09.3]} 29... Kg6 {[%clk 0:00:16.7]} 30. Qe6+ {[%clk 0:01:07.2]}
30... Kh5 {[%clk 0:00:17]} 31. Qf5+ {[%clk 0:01:06.7]} 31... Kxh4 {[%clk
0:00:16.3]} 32. Be7+ {[%clk 0:00:55]} 32... g5 {[%clk 0:00:16.5]} 33. Qxg5+
{[%clk 0:00:55.4]} 1-0

[Event "Early-Titled-Tuesday-Blitz-February-27-2024"]
[Site "Chess.com"]
[Date "2024.02.27"]
[Round "4"]
[White "nicolasbatista3"]
[Black "quvnoq_muxlis"]
[Result "0-1"]
[WhiteElo "2414"]
[BlackElo "2680"]
[TimeControl "180+1"]
[EndTime "8:37:10 PST"]
[Termination "quvnoq_muxlis won by resignation"]

1. d4 {[%clk 0:03:00.9]} 1... d6 {[%clk 0:03:00.1]} 2. c4 {[%clk 0:03:01.5]}
2... e5 {[%clk 0:02:59]} 3. e3 {[%clk 0:03:01.2]} 3... f5 {[%clk 0:02:58]} 4.
Nc3 {[%clk 0:03:00.9]} 4... Nf6 {[%clk 0:02:58.2]} 5. g3 {[%clk 0:02:59.3]} 5...
Be7 {[%clk 0:02:58.6]} 6. Bg2 {[%clk 0:02:59.5]} 6... c6 {[%clk 0:02:58.5]} 7.
Nge2 {[%clk 0:02:58.3]} 7... O-O {[%clk 0:02:58.4]} 8. O-O {[%clk 0:02:58.1]}
8... Na6 {[%clk 0:02:58.9]} 9. b3 {[%clk 0:02:50.8]} 9... e4 {[%clk 0:02:53.2]}
10. d5 {[%clk 0:02:49.3]} 10... Nc5 {[%clk 0:02:52.2]} 11. Ba3 {[%clk
0:02:35.7]} 11... Qa5 {[%clk 0:02:51.5]} 12. Bxc5 {[%clk 0:01:56.7]} 12... Qxc5
{[%clk 0:02:51.1]} 13. dxc6 {[%clk 0:01:53.4]} 13... bxc6 {[%clk 0:02:50.8]} 14.
Rc1 {[%clk 0:01:51.6]} 14... Bd7 {[%clk 0:02:49.8]} 15. Nd4 {[%clk 0:01:45.3]}
15... Ng4 {[%clk 0:02:35]} 16. Qc2 {[%clk 0:01:00.2]} 16... Qa5 {[%clk
0:02:21.4]} 17. h3 {[%clk 0:00:56.2]} 17... Ne5 {[%clk 0:02:19.9]} 18. Nce2
{[%clk 0:00:56]} 18... Nd3 {[%clk 0:02:15.2]} 19. Rcd1 {[%clk 0:00:55.9]} 19...
c5 {[%clk 0:02:15.6]} 20. Nb5 {[%clk 0:00:44.2]} 20... Bxb5 {[%clk 0:02:15.5]}
21. cxb5 {[%clk 0:00:45.1]} 21... Qxb5 {[%clk 0:02:16]} 22. f3 {[%clk
0:00:35.7]} 22... Nb4 {[%clk 0:02:13]} 23. Qb2 {[%clk 0:00:31.7]} 23... exf3
{[%clk 0:02:09.3]} 24. Bxf3 {[%clk 0:00:32.2]} 24... Rae8 {[%clk 0:02:09]} 25.
a3 {[%clk 0:00:28.2]} 25... Na6 {[%clk 0:02:04.8]} 26. Nf4 {[%clk 0:00:26.2]}
26... Kh8 {[%clk 0:01:58.9]} 27. a4 {[%clk 0:00:21.1]} 27... Qb8 {[%clk
0:01:51.3]} 28. Qc2 {[%clk 0:00:19.3]} 28... Nb4 {[%clk 0:01:50.4]} 29. Qc4
{[%clk 0:00:19]} 29... Bf6 {[%clk 0:01:47.3]} 30. g4 {[%clk 0:00:15]} 30... Rxe3
{[%clk 0:01:39.8]} 31. gxf5 {[%clk 0:00:14.6]} 31... Bd4 {[%clk 0:01:22.2]} 32.
Kg2 {[%clk 0:00:13.3]} 32... Rxf5 {[%clk 0:01:16.7]} 33. Bg4 {[%clk 0:00:13.7]}
33... Rf6 {[%clk 0:01:14.7]} 34. Nd5 {[%clk 0:00:12.8]} 34... Nxd5 {[%clk
0:01:13.5]} 35. Qxd5 {[%clk 0:00:13.7]} 35... Qxb3 {[%clk 0:01:10.8]} 36. Rxf6
{[%clk 0:00:10.2]} 36... Qxd5+ {[%clk 0:01:07.9]} 37. Bf3 {[%clk 0:00:09.8]}
37... Qg5+ {[%clk 0:01:08]} 0-1

[Event "Early-Titled-Tuesday-Blitz-February-27-2024"]
[Site "Chess.com"]
[Date "2024.02.27"]
[Round "4"]
[White "aljado"]
[Black "talaicito"]
[Result "0-1"]
[WhiteElo "2026"]
[BlackElo "2283"]
[TimeControl "180+1"]
[EndTime "8:37:13 PST"]
[Termination "talaicito won by resignation"]

1. e4 {[%clk 0:03:00.9]} 1... c5 {[%clk 0:02:59.6]} 2. Nf3 {[%clk 0:02:59.5]}
2... d6 {[%clk 0:03:00]} 3. c3 {[%clk 0:02:57.6]} 3... Nf6 {[%clk 0:02:58.4]} 4.
Bc4 {[%clk 0:02:58]} 4... e6 {[%clk 0:02:54.7]} 5. Qe2 {[%clk 0:02:57]} 5... Nc6
{[%clk 0:02:52.7]} 6. O-O {[%clk 0:02:56.3]} 6... Be7 {[%clk 0:02:52.6]} 7. d4
{[%clk 0:02:54.7]} 7... cxd4 {[%clk 0:02:48.5]} 8. cxd4 {[%clk 0:02:53.6]} 8...
d5 {[%clk 0:02:46]} 9. exd5 {[%clk 0:02:52.2]} 9... Nxd5 {[%clk 0:02:45.6]} 10.
Nc3 {[%clk 0:02:49]} 10... O-O {[%clk 0:02:43.7]} 11. Nxd5 {[%clk 0:02:42.6]}
11... exd5 {[%clk 0:02:43.5]} 12. Bd3 {[%clk 0:02:43.1]} 12... Bg4 {[%clk
0:02:31.1]} 13. Be3 {[%clk 0:02:42.3]} 13... Nb4 {[%clk 0:02:16.5]} 14. Bb1
{[%clk 0:02:37.7]} 14... Re8 {[%clk 0:02:14.8]} 15. a3 {[%clk 0:02:32.2]} 15...
Nc6 {[%clk 0:02:14.6]} 16. Qd3 {[%clk 0:02:27]} 16... g6 {[%clk 0:02:12.1]} 17.
Ne5 {[%clk 0:02:16.2]} 17... Nxe5 {[%clk 0:01:46.1]} 18. dxe5 {[%clk 0:02:15.2]}
18... Rc8 {[%clk 0:01:46.6]} 19. Ba2 {[%clk 0:02:02.9]} 19... Bc5 {[%clk
0:01:10.8]} 20. Bxc5 {[%clk 0:01:43.6]} 20... Rxc5 {[%clk 0:01:10.4]} 21. b4
{[%clk 0:01:39.3]} 21... Rc7 {[%clk 0:01:01]} 22. f4 {[%clk 0:01:26.6]} 22...
Be6 {[%clk 0:00:43.3]} 23. Rac1 {[%clk 0:01:23]} 23... Rxc1 {[%clk 0:00:38.6]}
24. Rxc1 {[%clk 0:01:19.8]} 24... Qb6+ {[%clk 0:00:39.5]} 25. Kh1 {[%clk
0:01:17.4]} 25... Qf2 {[%clk 0:00:39.4]} 26. Bb3 {[%clk 0:00:17.2]} 26... Qxf4
{[%clk 0:00:38.8]} 27. Qb5 {[%clk 0:00:16.4]} 27... Qxc1+ {[%clk 0:00:38.2]} 0-1

[Event "Early-Titled-Tuesday-Blitz-February-27-2024"]
[Site "Chess.com"]
[Date "2024.02.27"]
[Round "4"]
[White "xasid81"]
[Black "AniJak"]
[Result "1-0"]
[WhiteElo "2538"]
[BlackElo "2368"]
[TimeControl "180+1"]
[EndTime "8:37:16 PST"]
[Termination "xasid81 won on time"]

1. Nf3 {[%clk 0:03:00.9]} 1... f5 {[%clk 0:02:56.9]} 2. Nc3 {[%clk 0:03:01.1]}
2... Nf6 {[%clk 0:02:55.8]} 3. d3 {[%clk 0:03:00.5]} 3... d5 {[%clk 0:02:53.5]}
4. e4 {[%clk 0:02:59.1]} 4... dxe4 {[%clk 0:02:52]} 5. dxe4 {[%clk 0:02:59.4]}
5... Qxd1+ {[%clk 0:02:51.6]} 6. Kxd1 {[%clk 0:03:00.3]} 6... fxe4 {[%clk
0:02:33.5]} 7. Ng5 {[%clk 0:02:59.4]} 7... Bf5 {[%clk 0:02:31.7]} 8. Bc4 {[%clk
0:02:56.6]} 8... Nc6 {[%clk 0:02:24.2]} 9. Bf7+ {[%clk 0:02:55.2]} 9... Kd7
{[%clk 0:02:20.7]} 10. Bb3 {[%clk 0:02:52.1]} 10... h6 {[%clk 0:02:02.8]} 11.
Nh3 {[%clk 0:02:45.6]} 11... Bxh3 {[%clk 0:01:59]} 12. gxh3 {[%clk 0:02:46.5]}
12... Rd8 {[%clk 0:01:56.7]} 13. Be3 {[%clk 0:02:43.6]} 13... Kc8+ {[%clk
0:01:55.2]} 14. Ke2 {[%clk 0:02:41.1]} 14... e5 {[%clk 0:01:55.1]} 15. Kf1
{[%clk 0:02:31.2]} 15... Bb4 {[%clk 0:01:51.2]} 16. Rg1 {[%clk 0:02:27.2]} 16...
g5 {[%clk 0:01:47.5]} 17. h4 {[%clk 0:02:27.2]} 17... g4 {[%clk 0:01:43.3]} 18.
Be6+ {[%clk 0:02:21]} 18... Kb8 {[%clk 0:01:41.5]} 19. Bxg4 {[%clk 0:02:21.4]}
19... Nd4 {[%clk 0:01:37.6]} 20. Bd1 {[%clk 0:02:17.7]} 20... Nf5 {[%clk
0:01:30.7]} 21. a3 {[%clk 0:01:52.7]} 21... Bxc3 {[%clk 0:01:18.2]} 22. bxc3
{[%clk 0:01:52.4]} 22... Nxh4 {[%clk 0:01:18.1]} 23. Rg3 {[%clk 0:01:44.4]}
23... Nd5 {[%clk 0:00:54.5]} 24. c4 {[%clk 0:01:31]} 24... Nxe3+ {[%clk
0:00:30.5]} 25. Rxe3 {[%clk 0:01:31.9]} 25... Rd4 {[%clk 0:00:30.4]} 26. Be2
{[%clk 0:01:29.8]} 26... Nf5 {[%clk 0:00:28.4]} 27. Rh3 {[%clk 0:01:27.9]} 27...
Rf8 {[%clk 0:00:27.6]} 28. Rd1 {[%clk 0:01:16.8]} 28... e3 {[%clk 0:00:22.6]}
29. Rxd4 {[%clk 0:01:10.8]} 29... exd4 {[%clk 0:00:17.7]} 30. Rf3 {[%clk
0:01:08.8]} 30... exf2 {[%clk 0:00:14.5]} 31. Kxf2 {[%clk 0:01:07.5]} 31... Rf7
{[%clk 0:00:13.9]} 32. c5 {[%clk 0:00:59.8]} 32... h5 {[%clk 0:00:10.5]} 33. Bc4
{[%clk 0:00:57.8]} 1-0

[Event "Early-Titled-Tuesday-Blitz-February-27-2024"]
[Site "Chess.com"]
[Date "2024.02.27"]
[Round "4"]
[White "Elsa167"]
[Black "Maikrosoft63"]
[Result "1-0"]
[WhiteElo "2882"]
[BlackElo "2598"]
[TimeControl "180+1"]
[EndTime "8:37:17 PST"]
[Termination "Elsa167 won by resignation"]

1. d4 {[%clk 0:03:00.9]} 1... Nf6 {[%clk 0:02:59.4]} 2. c4 {[%clk 0:03:01.3]}
2... e6 {[%clk 0:02:59.6]} 3. Nf3 {[%clk 0:02:59.4]} 3... b6 {[%clk 0:02:59.5]}
4. Bf4 {[%clk 0:02:59.5]} 4... Bb7 {[%clk 0:02:59.3]} 5. e3 {[%clk 0:03:00.1]}
5... Be7 {[%clk 0:02:56.3]} 6. h3 {[%clk 0:02:59.7]} 6... O-O {[%clk 0:02:56.3]}
7. Nc3 {[%clk 0:03:00.1]} 7... Bb4 {[%clk 0:02:56]} 8. Qb3 {[%clk 0:02:54.2]}
8... a5 {[%clk 0:02:48.4]} 9. Be2 {[%clk 0:02:48.2]} 9... Ne4 {[%clk 0:02:47.8]}
10. O-O {[%clk 0:02:44.5]} 10... Bxc3 {[%clk 0:02:34.4]} 11. bxc3 {[%clk
0:02:44.6]} 11... d6 {[%clk 0:02:34.7]} 12. Rfd1 {[%clk 0:02:40.5]} 12... Nd7
{[%clk 0:02:33.7]} 13. Nd2 {[%clk 0:02:28.7]} 13... Qe7 {[%clk 0:02:22.3]} 14.
Nxe4 {[%clk 0:02:25.8]} 14... Bxe4 {[%clk 0:02:23.2]} 15. f3 {[%clk 0:02:25.1]}
15... Bc6 {[%clk 0:02:18.7]} 16. e4 {[%clk 0:02:23.7]} 16... e5 {[%clk
0:02:15.7]} 17. Be3 {[%clk 0:02:08.1]} 17... f5 {[%clk 0:02:08.4]} 18. c5+
{[%clk 0:02:04.8]} 18... Kh8 {[%clk 0:02:06.2]} 19. d5 {[%clk 0:01:53.4]} 19...
Nxc5 {[%clk 0:01:42.5]} 20. Bxc5 {[%clk 0:01:53]} 20... bxc5 {[%clk 0:01:41.5]}
21. dxc6 {[%clk 0:01:52.8]} 21... fxe4 {[%clk 0:01:42.2]} 22. fxe4 {[%clk
0:01:51.4]} 22... Qh4 {[%clk 0:01:41.5]} 23. Rf1 {[%clk 0:01:21.1]} 23... Qxe4
{[%clk 0:01:39.1]} 24. Bf3 {[%clk 0:01:10.6]} 24... Qe3+ {[%clk 0:01:37.6]} 25.
Kh1 {[%clk 0:01:10.3]} 25... Rab8 {[%clk 0:01:33.7]} 26. Qe6 {[%clk 0:01:06]}
26... Rf6 {[%clk 0:01:29.6]} 27. Qe7 {[%clk 0:01:05.6]} 27... Rbf8 {[%clk
0:01:27.8]} 28. Qxc7 {[%clk 0:00:53.8]} 28... h6 {[%clk 0:01:08.5]} 29. Qd7
{[%clk 0:00:51.9]} 29... Rxf3 {[%clk 0:00:37.7]} 30. Rxf3 {[%clk 0:00:49.1]}
30... Rxf3 {[%clk 0:00:37.5]} 31. c7 {[%clk 0:00:49.2]} 31... Qxc3 {[%clk
0:00:26.8]} 32. c8=Q+ {[%clk 0:00:49]} 32... Kh7 {[%clk 0:00:27.5]} 33. Rg1
{[%clk 0:00:37.8]} 1-0

[Event "Early-Titled-Tuesday-Blitz-February-27-2024"]
[Site "Chess.com"]
[Date "2024.02.27"]
[Round "4"]
[White "gpsji27"]
[Black "tetrix83"]
[Result "0-1"]
[WhiteElo "2348"]
[BlackElo "2531"]
[TimeControl "180+1"]
[EndTime "8:37:18 PST"]
[Termination "tetrix83 won by resignation"]

1. d4 {[%clk 0:03:00.9]} 1... Nf6 {[%clk 0:02:59.5]} 2. Nf3 {[%clk 0:02:55.2]}
2... g6 {[%clk 0:02:53.6]} 3. Nc3 {[%clk 0:02:53.3]} 3... d5 {[%clk 0:02:52.6]}
4. Bf4 {[%clk 0:02:52.8]} 4... Bg7 {[%clk 0:02:39.5]} 5. e3 {[%clk 0:02:48.1]}
5... O-O {[%clk 0:02:34.1]} 6. Be2 {[%clk 0:02:39]} 6... c5 {[%clk 0:02:33]} 7.
Ne5 {[%clk 0:02:28.4]} 7... Nc6 {[%clk 0:02:24]} 8. h4 {[%clk 0:02:26.1]} 8...
cxd4 {[%clk 0:02:12.4]} 9. exd4 {[%clk 0:02:15.6]} 9... Qb6 {[%clk 0:02:12.5]}
10. Nxc6 {[%clk 0:02:12.3]} 10... bxc6 {[%clk 0:02:12.6]} 11. Rb1 {[%clk
0:02:08.9]} 11... Ne4 {[%clk 0:02:04.4]} 12. Nxe4 {[%clk 0:02:05.6]} 12... dxe4
{[%clk 0:02:05.3]} 13. c3 {[%clk 0:01:55.3]} 13... Rd8 {[%clk 0:02:04.2]} 14.
Be3 {[%clk 0:01:48.9]} 14... e5 {[%clk 0:01:59.6]} 15. d5 {[%clk 0:01:41.1]}
15... Qc7 {[%clk 0:01:49.7]} 16. c4 {[%clk 0:01:26]} 16... cxd5 {[%clk
0:01:48.1]} 17. cxd5 {[%clk 0:01:26.9]} 17... Qa5+ {[%clk 0:01:45.8]} 18. Qd2
{[%clk 0:01:17.5]} 18... Qxd2+ {[%clk 0:01:38.9]} 19. Bxd2 {[%clk 0:01:16.8]}
19... Rxd5 {[%clk 0:01:39.3]} 20. Bc4 {[%clk 0:01:13.2]} 20... Rc5 {[%clk
0:01:34.9]} 21. b3 {[%clk 0:01:11.4]} 21... a5 {[%clk 0:01:32.4]} 22. Be3 {[%clk
0:01:09.3]} 22... Rc7 {[%clk 0:01:28.3]} 23. Rd1 {[%clk 0:00:57.6]} 23... Bg4
{[%clk 0:01:13.2]} 24. Rd2 {[%clk 0:00:47.1]} 24... Bf8 {[%clk 0:01:13.2]} 25.
O-O {[%clk 0:00:41.9]} 25... Bb4 {[%clk 0:01:11.4]} 26. Rd5 {[%clk 0:00:38.8]}
26... Be6 {[%clk 0:01:07.1]} 27. Rxe5 {[%clk 0:00:36.7]} 27... Bxc4 {[%clk
0:01:06.6]} 28. Rc1 {[%clk 0:00:29.6]} 28... Bd6 {[%clk 0:00:53.4]} 29. Rxe4
{[%clk 0:00:21.2]} 29... Bd5 {[%clk 0:00:45.3]} 30. Rxc7 {[%clk 0:00:19.7]}
30... Bxc7 {[%clk 0:00:43]} 31. Rd4 {[%clk 0:00:20.1]} 31... Be6 {[%clk
0:00:41.7]} 0-1